bitfinex-derivatives/quotes_SOLF0:USTF0_20241226
["timestamp","ask_amount","ask_price","bid_price","bid_amount"]
[1735244144555,2.6443,189.25,189.2,2.6448]
[1735244144759,2.6443,189.25,189.21,3.08]
[1735244145456,2.6444,189.24,189.21,3.08]
[1735244145650,9.76396839,189.27,189.21,3.08]
[1735244145860,9.76396839,189.24,189.21,3.08]
[1735244146057,9.76396839,189.24,189.16,3.08]
[1735244146256,9.76396839,189.21,189.15,3.08]
[1735244146756,2.6455,189.16,189.15,3.08]
[1735244148749,9.76396839,189.18,189.11,3.08]
[1735244148952,9.76396839,189.15,189.11,3.08]
[1735244149359,2.6465,189.09,189.04,2.6471]
[1735244149552,2.6465,189.09,189.08,3.08]
[1735244150153,9.76396839,189.12,189.02,2.6473]
[1735244150354,2.6467,189.08,189.03,3.08]
[1735244151456,2.6467,189.08,189.04,2.6471]
[1735244152959,2.6464,189.09,189.05,2.647]
[1735244153156,9.76396839,189.15,189.03,3.08]
[1735244153554,1.6347,189.2,189.04,9.76396839]
[1735244153756,1.6347,189.2,189.07,9.76396839]
[1735244153757,9.76396839,189.2,189.07,9.76396839]
[1735244153956,9.76396839,189.2,189.08,3.08]
[1735244154357,9.76396839,189.2,189.09,4.6398]
[1735244154556,2.6454,189.17,189.13,2.6458]
[1735244154756,1.5605,189.23,189.14,3.08]
[1735244154757,9.76396839,189.23,189.14,3.08]
[1735244155561,9.76396839,189.2,189.14,3.08]
[1735244157768,2.6456,189.16,189.14,3.08]
[1735244159259,2.6451,189.19,189.14,3.08]
[1735244159664,9.76396839,189.23,189.14,3.08]
[1735244159862,9.76396839,189.23,189.15,2.6455]
[1735244160060,9.76396839,189.2,189.14,3.08]
[1735244160465,2.6456,189.15,189.14,3.08]
[1735244160660,9.76396839,189.2,189.14,3.08]
[1735244162471,2.6456,189.15,189.14,3.08]
[1735244162867,9.76396839,189.17,189.09,4.6398]
[1735244163069,9.76396839,189.17,189.1,3.08]
[1735244163568,2.646,189.13,189.1,3.08]
[1735244164863,9.76396839,189.17,189.1,3.08]
[1735244165066,9.76396839,189.17,189.11,3.08]
[1735244165570,9.76396839,189.14,189.11,3.08]
[1735244165763,9.76396839,189.14,189.05,2.6469]
[1735244165966,9.76396839,189.14,189.06,3.08]
[1735244167661,9.76396839,189.14,189.07,2.6467]
[1735244167869,9.76396839,189.14,189.06,3.08]
[1735244168071,1.5194,189.16,189.06,3.08]
[1735244169569,2.646,189.12,189.08,2.6466]
[1735244169769,1.5194,189.16,189.08,2.6466]
[1735244170070,9.76396839,189.14,189.06,5.7268]
[1735244170870,2.6464,189.1,189.06,5.7268]
[1735244173977,2.6464,189.1,189.06,2.6468]
[1735244174179,2.6464,189.1,189.07,3.08]
[1735244174576,2.6464,189.1,189.07,5.7267]
[1735244179286,6.25651272,189.08,189.05,3.1]
[1735244179776,2.6468,189.07,189.05,3.1]
[1735244180181,9.77987089,189.11,189.05,3.1]
[1735244180381,9.77987089,189.11,189.02,3.1261]
[1735244180584,9.77987089,189.08,188.97,63.61215998]
[1735244180782,9.77987089,189.08,188.98,3.1]
[1735244180986,2.6474,189.03,188.99,2.6478]
[1735244181385,9.77987089,189.08,188.98,5.7479]
[1735244181386,2.647,189.05,188.98,5.7479]
[1735244181590,9.77987089,189.08,188.98,5.7479]
[1735244182188,9.77987089,189.08,188.98,3.1]
[1735244182482,9.77987089,189.08,188.99,3.1]
[1735244182483,9.77987089,189.05,188.99,3.1]
[1735244183583,9.77987089,189.02,188.91,3.186]
[1735244183782,9.77987089,189.02,188.92,3.1]
[1735244184094,9.77987089,188.99,188.93,3.1]
[1735244184288,9.77987089,188.99,188.87,7.26071805]
[1735244184590,2.6486,188.94,188.89,2.6492]
[1735244185291,2.6487,188.93,188.89,2.6492]
[1735244185995,9.77987089,188.96,188.87,2.6494]
[1735244186193,9.77987089,188.93,188.85,1.5272]
[1735244186394,9.77987089,188.93,188.86,3.1]
[1735244186594,2.6491,188.91,188.86,3.1]
[1735244186795,9.77987089,188.93,188.86,3.1]
[1735244187193,9.77987089,188.9,188.86,3.1]
[1735244187890,9.77987089,188.9,188.79,1.5203]
[1735244188191,9.77987089,188.9,188.8,3.1]
[1735244188996,2.6494,188.88,188.82,2.6502]
[1735244189996,2.6497,188.86,188.8,5.7504]
[1735244190296,9.77987089,188.9,188.8,5.7504]
[1735244190794,9.77987089,188.9,188.81,3.1]
[1735244191199,2.6496,188.87,188.81,3.1]
[1735244191393,2.6496,188.87,188.8,2.6504]
[1735244191597,2.6496,188.87,188.81,3.1]
[1735244192190,2.6498,188.86,188.8,2.6504]
[1735244192396,9.77987089,188.9,188.81,3.1]
[1735244192698,9.77987089,188.9,188.82,3.1]
[1735244193794,2.6498,188.86,188.82,3.1]
[1735244193998,9.77987089,188.9,188.82,3.1]
[1735244195097,2.6499,188.85,188.82,3.1]
[1735244195598,9.77987089,188.87,188.82,3.1]
[1735244195798,9.77987089,188.87,188.8,3.1]
[1735244196202,9.77987089,188.84,188.8,3.1]
[1735244196401,2.6503,188.82,188.8,3.1]
[1735244196904,2.6499,188.85,188.8,3.1]
[1735244197095,13.08707089,188.89,188.8,3.1]
[1735244198002,2.6498,188.86,188.8,5.7505]
[1735244198206,13.08707089,188.89,188.8,5.7505]
[1735244198705,2.6498,188.86,188.8,5.7505]
[1735244199502,13.08707089,188.89,188.79,2.6506]
[1735244199806,9.77987089,188.86,188.8,3.1]
[1735244200004,2.6503,188.82,188.8,3.1]
[1735244200403,9.77987089,188.86,188.8,3.1]
[1735244200602,2.65,188.84,188.8,3.1]
[1735244202511,2.6501,188.83,188.8,3.1]
[1735244202711,9.77987089,188.86,188.77,2.6509]
[1735244202905,9.77987089,188.86,188.8,3.1]
[1735244203107,2.6503,188.82,188.8,3.1]
[1735244203607,2.6503,188.82,188.77,2.6509]
[1735244203809,2.6504,188.81,188.78,3.1]
[1735244204004,9.77987089,188.86,188.73,3.2861]
[1735244204210,9.77987089,188.83,188.73,1.6482]
[1735244204509,2.6509,188.77,188.74,3.1]
[1735244205213,9.77987089,188.8,188.74,3.1]
[1735244205413,2.6512,188.76,188.74,3.1]
[1735244205713,2.6512,188.76,188.71,57.7117]
[1735244205912,2.6512,188.76,188.73,3.1]
[1735244207014,2.6508,188.78,188.73,5.7515]
[1735244207209,2.6508,188.78,188.73,3.1]
[1735244208511,2.6508,188.78,188.74,2.6513]
[1735244209516,2.6508,188.78,188.73,3.1]
[1735244209716,2.6508,188.78,188.73,5.7515]
[1735244211115,9.77987089,188.8,188.73,5.7515]
[1735244211312,2.651,188.77,188.73,5.7515]
[1735244215412,9.77987089,188.8,188.73,3.1]
[1735244215618,9.77987089,188.74,188.61,7.26071805]
[1735244215817,9.77987089,188.74,188.62,3.12]
[1735244216114,2.6521,188.7,188.65,2.6525]
[1735244216314,9.77987089,188.74,188.65,2.6525]
[1735244217014,9.77987089,188.74,188.43,2.13774836]
[1735244217015,9.77987089,188.68,188.57,29.04287222]
[1735244217215,9.77987089,188.7,188.57,32.16287222]
[1735244217216,9.77987089,188.65,188.57,32.16287222]
[1735244218016,2.6532,188.61,188.57,32.16287222]
[1735244218321,9.77987089,188.62,188.57,29.04287222]
[1735244218516,9.77987089,188.62,188.57,3.12]
[1735244218717,2.6534,188.6,188.57,3.12]
[1735244219020,9.77987089,188.62,188.57,3.12]
[1735244220315,2.6536,188.59,188.53,59.3176]
[1735244220617,9.77987089,188.62,188.54,3.12]
[1735244220820,9.77987089,188.59,188.54,3.12]
[1735244221030,2.6538,188.57,188.54,3.12]
[1735244221323,9.77987089,188.59,188.53,3.12]
[1735244222719,9.77987089,188.62,188.53,3.12]
[1735244224324,9.77987089,188.62,188.54,2.6541]
[1735244224733,9.77987089,188.62,188.49,9.77987089]
[1735244224927,9.77987089,188.59,188.5,3.12]
[1735244225522,9.77987089,188.59,188.5,5.7747]
[1735244226127,9.77987089,188.59,188.51,3.12]
[1735244226325,9.77987089,188.59,188.49,2.6547]
[1735244226531,9.77987089,188.59,188.5,3.12]
[1735244227127,2.654,188.56,188.5,2.6546]
[1735244227327,2.654,188.56,188.51,3.12]
[1735244227529,9.77987089,188.59,188.47,3.093]
[1735244227725,9.77987089,188.59,188.48,3.12]
[1735244228225,9.77987089,188.59,188.47,3.093]
[1735244228226,9.77987089,188.56,188.49,3.12]
[1735244228424,9.77987089,188.56,188.47,3.093]
[1735244228626,9.77987089,188.56,188.48,3.12]
[1735244228822,9.77987089,188.56,188.47,1.5438]
[1735244229127,9.77987089,188.53,188.46,3.12]
[1735244229427,2.6551,188.48,188.45,3.12]
[1735244230625,9.77987089,188.53,188.45,3.12]
[1735244230832,9.77987089,188.47,188.36,3.12]
[1735244231035,9.77987089,188.44,188.36,3.12]
[1735244231332,9.77987089,188.44,188.38,2.6564]
[1735244231727,9.77987089,188.44,188.36,3.12]
[1735244231927,2.656,188.41,188.37,2.6565]
[1735244232531,2.656,188.41,188.38,3.12]
[1735244232732,9.77987089,188.44,188.38,3.12]
[1735244232936,1.4069,188.51,188.39,3.12]
[1735244233133,9.77987089,188.5,188.4,3.12]
[1735244233636,9.77987089,188.44,188.36,3.12]
[1735244233836,9.77987089,188.47,188.36,3.12]
[1735244234136,9.77987089,188.5,188.36,3.12]
[1735244234533,2.6556,188.44,188.4,2.6561]
[1735244234939,9.77987089,188.5,188.4,2.6561]
[1735244235328,9.77987089,188.5,188.37,12.89987089]
[1735244236131,2.6556,188.44,188.4,2.6561]
[1735244236836,9.77987089,188.5,188.37,3.12]
[1735244237035,9.77987089,188.47,188.34,4.6351]
[1735244237542,9.77987089,188.44,188.35,3.12]
[1735244238333,9.77987089,188.44,188.34,4.6351]
[1735244238334,9.77987089,188.41,188.27,9.77987089]
[1735244238535,9.77987089,188.41,188.28,3.12]
[1735244238939,2.6564,188.38,188.34,2.657]
[1735244239236,9.77987089,188.41,188.34,3.12]
[1735244239637,2.6567,188.37,188.34,3.12]
[1735244239840,2.6567,188.37,188.33,2.6571]
[1735244240030,9.77987089,188.41,188.33,3.12]
[1735244240628,9.77987089,188.41,188.27,9.77987089]
[1735244240832,9.77987089,188.35,188.18,58.08574447]
[1735244241134,9.77987089,188.35,188.21,4.7913]
[1735244241837,9.77987089,188.38,188.21,4.7913]
[1735244241838,9.77987089,188.32,188.22,3.16]
[1735244242429,2.6577,188.29,188.23,2.6584]
[1735244242639,2.6577,188.29,188.22,3.16]
[1735244243238,9.77987089,188.32,188.22,3.16]
[1735244243434,2.6575,188.31,188.22,3.16]
[1735244243642,2.6575,188.31,188.26,2.6581]
[1735244243842,2.6575,188.31,188.27,3.16]
[1735244245543,2.6576,188.3,188.27,3.16]
[1735244248638,9.77987089,188.29,188.21,4.7913]
[1735244248846,9.77987089,188.29,188.22,3.16]
[1735244249243,2.6578,188.28,188.24,2.6584]
[1735244249444,9.77987089,188.29,188.24,2.6584]
[1735244250244,12.43767089,188.29,188.22,3.16]
[1735244250542,12.43717089,188.32,188.22,3.16]
[1735244250743,9.77987089,188.32,188.25,2.6583]
[1735244251143,2.6577,188.3,188.25,2.6583]
[1735244251739,2.6577,188.29,188.26,3.16]
[1735244252142,9.77987089,188.29,188.26,3.16]
[1735244252544,2.6579,188.28,188.26,3.16]
[1735244253448,12.43757089,188.29,188.26,3.16]
[1735244256749,9.77987089,188.32,188.26,3.16]
[1735244257447,9.77987089,188.32,188.29,2.6576]
[1735244259048,9.77987089,188.32,188.3,2.6575]
[1735244259652,9.77987089,188.32,188.26,3.16]
[1735244260244,9.77987089,188.32,188.21,4.7913]
[1735244260445,9.77987089,188.32,188.22,3.16]
[1735244260643,9.77987089,188.29,188.24,2.6583]
[1735244261455,2.6579,188.28,188.24,2.6583]
[1735244262147,1.6203,188.35,188.22,3.16]
[1735244262347,9.77987089,188.34,188.29,2.6576]
[1735244263453,2.6573,188.32,188.29,2.6576]
[1735244267154,2.6573,188.32,188.28,5.8178]
[1735244267656,9.77987089,188.34,188.29,2.6577]
[1735244268161,2.6573,188.32,188.28,3.16]
[1735244268358,2.6573,188.32,188.28,5.8177]
[1735244270257,9.77987089,188.34,188.28,3.16]
[1735244270653,9.77987089,188.31,188.28,3.16]
[1735244271161,2.658,188.27,188.24,3.16]
[1735244271848,9.77987089,188.31,188.24,3.16]
[1735244272048,2.6579,188.28,188.25,3.16]
[1735244272254,9.77987089,188.31,188.25,3.16]
[1735244273656,2.6579,188.28,188.25,3.16]
[1735244274357,2.658,188.27,188.25,3.16]
[1735244275260,2.6578,188.29,188.25,5.8181]
[1735244275761,2.6573,188.32,188.25,3.16]
[1735244276063,9.77987089,188.37,188.25,12.93987089]
[1735244276257,31.70192613,188.4,188.25,12.93987089]
[1735244276461,2.6565,188.38,188.34,2.657]
[1735244276660,2.6565,188.38,188.34,5.817]
[1735244276955,2.6565,188.38,188.34,3.16]
[1735244277756,9.77987089,188.4,188.34,3.16]
[1735244278061,9.77987089,188.4,188.33,3.16]
[1735244278861,2.6567,188.37,188.33,5.8171]
[1735244282957,2.6568,188.36,188.33,3.16]
[1735244283458,9.77987089,188.4,188.33,3.16]
[1735244283862,2.6559,188.42,188.33,5.817]
[1735244284055,9.77987089,188.43,188.33,3.16]
[1735244284457,9.77987089,188.4,188.33,5.817]
[1735244285055,2.6564,188.38,188.34,2.657]
[1735244285259,9.77987089,188.44,188.33,3.16]
[1735244285455,12.43557089,188.44,188.33,3.16]
[1735244285659,12.43557089,188.44,188.38,2.6564]
[1735244285660,9.77987089,188.44,188.38,2.6564]
[1735244285859,9.77987089,188.44,188.39,3.16]
[1735244286055,2.6561,188.41,188.39,3.16]
[1735244286261,9.77987089,188.44,188.39,3.16]
[1735244286764,2.656,188.41,188.39,3.16]
[1735244287866,9.77987089,188.44,188.39,3.16]
[1735244289164,9.77987089,188.47,188.39,3.16]
[1735244289764,11.71550491,188.52,188.39,3.16]
[1735244289972,9.77987089,188.47,188.39,3.16]
[1735244290470,2.6557,188.44,188.4,2.6561]
[1735244291669,9.77987089,188.44,188.39,3.16]
[1735244292963,9.77987089,188.47,188.39,3.16]
[1735244293366,2.6553,188.46,188.42,2.6558]
[1735244293562,9.77987089,188.47,188.39,3.16]
[1735244294664,2.6554,188.46,188.43,2.6556]
[1735244294863,9.77987089,188.47,188.44,3.16]
[1735244296370,2.6555,188.45,188.44,3.16]
[1735244296767,9.77987089,188.47,188.35,1.6345]
[1735244296971,2.6559,188.42,188.38,2.6564]
[1735244297469,2.6559,188.42,188.39,2.6563]
[1735244297666,2.6559,188.42,188.36,3.16]
[1735244298061,2.6558,188.43,188.36,3.16]
[1735244298473,9.77987089,188.46,188.36,3.16]
[1735244298664,2.6558,188.43,188.39,2.6562]
[1735244299574,9.77987089,188.46,188.39,2.6562]
[1735244299770,9.77987089,188.46,188.36,3.16]
[1735244299968,9.77987089,188.46,188.37,3.16]
[1735244300169,2.6557,188.44,188.37,3.16]
[1735244300374,9.77987089,188.46,188.37,3.16]
[1735244300566,9.77987089,188.46,188.38,2.6564]
[1735244300873,2.6559,188.42,188.38,2.6564]
[1735244301870,9.77987089,188.46,188.37,3.16]
[1735244302065,2.6563,188.39,188.37,3.16]
[1735244302673,2.6568,188.36,188.34,3.16]
[1735244302873,9.77987089,188.4,188.34,3.16]
[1735244303172,2.6571,188.33,188.32,3.16]
[1735244304078,9.77987089,188.37,188.28,57.9177]
[1735244304079,9.77987089,188.37,188.3,3.16]
[1735244304269,9.77987089,188.34,188.24,3.2888]
[1735244304473,9.77987089,188.34,188.25,3.16]
[1735244304679,2.6578,188.28,188.25,3.16]
[1735244305971,2.6577,188.29,188.25,3.16]
[1735244306478,2.6577,188.29,188.25,5.8182]
[1735244306668,2.658,188.27,188.25,3.16]
[1735244308170,2.6584,188.24,188.2,1.5382]
[1735244308373,2.6584,188.24,188.21,3.16]
[1735244308882,9.77987089,188.28,188.21,3.16]
[1735244309171,9.77987089,188.31,188.22,3.16]
[1735244309975,2.6579,188.28,188.24,2.6584]
[1735244310179,9.77987089,188.31,188.22,3.16]
[1735244311272,12.43727089,188.31,188.26,2.658]
[1735244311474,12.43727089,188.31,188.27,3.16]
[1735244312083,9.77987089,188.31,188.27,3.16]
[1735244312676,9.77987089,188.31,188.24,2.6583]
[1735244312983,9.77987089,188.31,188.25,3.16]
[1735244313276,2.6578,188.29,188.25,3.16]
[1735244314279,2.6578,188.29,188.25,5.8182]
[1735244317975,9.77987089,188.31,188.24,3.16]
[1735244318277,1.5385,188.34,188.24,3.16]
[1735244318474,9.77987089,188.35,188.24,3.16]
[1735244318877,9.77987089,188.32,188.24,3.16]
[1735244319076,2.6579,188.28,188.24,3.16]
[1735244320178,2.6579,188.28,188.24,5.8184]
[1735244320379,2.658,188.27,188.24,3.16]
[1735244320675,9.77987089,188.29,188.24,3.16]
[1735244321680,2.6581,188.27,188.24,3.16]
[1735244322084,2.6583,188.25,188.24,3.16]
[1735244322982,2.6583,188.25,188.22,3.16]
[1735244323984,2.6581,188.27,188.23,2.6585]
[1735244325076,2.6581,188.26,188.23,2.6585]
[1735244325687,9.77987089,188.29,188.22,3.16]
[1735244325989,2.6583,188.25,188.22,3.16]
[1735244326378,9.77987089,188.29,188.2,4.197]
[1735244326578,9.77987089,188.29,188.21,3.16]
[1735244327886,9.77987089,188.29,188.22,3.16]
[1735244328090,2.6585,188.24,188.22,3.16]
[1735244328685,2.6585,188.24,188.2,2.6588]
[1735244328892,9.77987089,188.26,188.19,3.2991]
[1735244329091,9.77987089,188.26,188.2,3.16]
[1735244329990,2.6585,188.24,188.2,3.16]
[1735244330191,9.77987089,188.26,188.2,3.16]
[1735244330393,9.77987089,188.3,188.2,3.16]
[1735244330588,2.6585,188.24,188.2,5.8189]
[1735244331091,2.6586,188.23,188.2,3.16]
[1735244332394,2.6588,188.22,188.2,3.16]
[1735244334195,9.77987089,188.3,188.12,3.2593]
[1735244334196,9.77987089,188.21,188.12,3.2593]
[1735244335094,2.6596,188.16,188.12,5.9194]
[1735244335295,9.77987089,188.18,188.11,4.7614]
[1735244335490,9.77987089,188.18,188.11,3.16]
[1735244337998,9.77987089,188.18,188.11,5.8202]
[1735244339304,2.6598,188.14,188.11,5.8202]
[1735244343302,2.6595,188.16,188.11,3.16]
[1735244343503,9.77987089,188.18,188.11,3.16]
[1735244344208,3.0102,188.25,188.13,6.31757453]
[1735244344500,8.97647453,188.21,188.15,6.31757453]
[1735244344700,8.97647453,188.21,188.17,2.6593]
[1735244344894,21.92205524,188.3,188.19,6.31757453]
[1735244345099,21.92205524,188.3,188.23,8.97597453]
[1735244345296,6.31757453,188.31,188.24,3.16]
[1735244345497,21.92205524,188.35,188.24,3.16]
[1735244345797,6.31757453,188.29,188.25,2.6582]
[1735244346205,9.86059457,188.33,188.25,2.6582]
[1735244346602,9.86059457,188.33,188.24,3.16]
[1735244346803,2.6571,188.34,188.29,2.6576]
[1735244347002,2.6571,188.34,188.3,3.16]
[1735244357610,9.86059457,188.33,188.3,3.16]
[1735244358312,2.6575,188.31,188.26,2.6581]
[1735244358506,9.86059457,188.33,188.27,3.16]
[1735244359102,2.6575,188.31,188.27,3.16]
[1735244360307,2.6578,188.31,188.27,3.16]
[1735244360506,9.86059457,188.33,188.27,3.16]
[1735244361106,2.6576,188.32,188.27,5.8182]
[1735244361309,9.86059457,188.33,188.27,5.8182]
[1735244361509,9.86059457,188.33,188.27,3.16]
[1735244362406,2.6579,188.3,188.27,3.16]
[1735244363006,9.86059457,188.33,188.23,2.6587]
[1735244363210,9.86059457,188.3,188.24,3.16]
[1735244364114,2.658,188.29,188.26,2.6582]
[1735244366210,6.31214492,188.28,188.26,2.6582]
[1735244366412,3.2591,188.36,188.24,3.16]
[1735244366607,6.31214492,188.31,188.24,3.16]
[1735244367019,8.96994492,188.31,188.27,2.6582]
[1735244367319,6.31214492,188.31,188.27,2.6582]
[1735244367819,2.6581,188.28,188.24,5.8185]
[1735244368012,6.31214492,188.29,188.24,3.16]
[1735244368620,6.31214492,188.29,188.26,2.6583]
[1735244369619,8.97014492,188.29,188.26,2.6583]
[1735244369820,2.658,188.29,188.26,2.6583]
[1735244370214,2.6574,188.34,188.3,2.6578]
[1735244370417,8.96954492,188.34,188.3,3.16]
[1735244371120,8.96954492,188.34,188.3,5.8178]
[1735244373328,2.6577,188.31,188.3,3.16]
[1735244373725,6.31214492,188.32,188.3,3.16]
[1735244374126,8.96974492,188.32,188.3,3.16]
[1735244374326,1.5947,188.41,188.3,3.16]
[1735244374526,6.31214492,188.34,188.3,3.16]
[1735244375431,6.31214492,188.34,188.31,2.6576]
[1735244376331,6.31214492,188.35,188.3,3.16]
[1735244376825,6.31214492,188.35,188.33,2.6573]
[1735244377631,6.31214492,188.35,188.32,2.6575]
[1735244378223,6.31214492,188.33,188.3,5.8178]
[1735244378433,6.31214492,188.33,188.3,3.16]
[1735244378637,1.5947,188.41,188.3,3.16]
[1735244378834,2.6565,188.39,188.36,2.657]
[1735244379135,2.6565,188.39,188.36,5.817]
[1735244379136,6.31214492,188.38,188.36,5.817]
[1735244379337,6.31214492,188.38,188.36,3.16]
[1735244380434,2.6568,188.37,188.36,3.16]
[1735244380833,21.92205524,188.44,188.36,3.16]
[1735244381028,6.31214492,188.38,188.36,3.16]
[1735244382035,8.96884492,188.38,188.36,3.16]
[1735244383430,23.59275524,188.46,188.36,3.16]
[1735244383635,6.31214492,188.4,188.36,3.16]
[1735244384442,6.31214492,188.4,188.38,2.6566]
[1735244385139,8.96834492,188.42,188.39,2.6565]
[1735244385735,2.656,188.43,188.39,2.6565]
[1735244385929,88.09591627,188.52,188.37,6.31214492]
[1735244386134,6.31214492,188.46,188.38,3.132]
[1735244386539,6.31214492,188.44,188.41,2.6562]
[1735244386743,88.09591627,188.52,188.39,3.16]
[1735244386744,21.92205524,188.52,188.39,3.16]
[1735244387041,6.31214492,188.46,188.43,2.6559]
[1735244387237,6.31214492,188.46,188.44,3.16]
[1735244388137,9.84540889,188.48,188.44,3.16]
[1735244389548,2.6557,188.45,188.44,3.16]
[1735244391148,2.6557,188.45,188.44,3.09648828]
[1735244393851,2.6553,188.48,188.44,5.75228828]
[1735244394041,9.84540889,188.51,188.44,3.09648828]
[1735244395353,9.84540889,188.54,188.44,3.09648828]
[1735244395543,9.84540889,188.54,188.45,1.5982]
[1735244395847,12.50000889,188.54,188.48,2.6552]
[1735244396048,12.50000889,188.54,188.49,3.14]
[1735244396545,9.84540889,188.57,188.49,3.14]
[1735244397044,1.5898,188.59,188.49,3.14]
[1735244397352,0.87943454,188.58,188.49,3.14]
[1735244397550,2.6541,188.57,188.52,2.6546]
[1735244397751,1.5898,188.59,188.52,2.6546]
[1735244398146,11.69223307,188.66,188.54,2.6544]
[1735244398347,9.84540889,188.63,188.55,3.14]
[1735244398544,9.84540889,188.6,188.56,3.14]
[1735244398853,2.654,188.57,188.56,3.14]
[1735244399254,9.84540889,188.6,188.54,3.14]
[1735244399255,2.6539,188.58,188.54,3.14]
[1735244400354,9.84540889,188.57,188.46,1.5842]
[1735244400553,9.84540889,188.57,188.47,3.14]
[1735244401048,0.87950039,188.56,188.47,3.14]
[1735244401251,2.6546,188.53,188.48,2.6552]
[1735244401556,9.84540889,188.57,188.47,3.14]
[1735244401744,9.84540889,188.54,188.45,3.1299]
[1735244401952,9.84540889,188.54,188.46,3.14]
[1735244402347,8.4459,188.65,188.46,3.14]
[1735244402552,9.84540889,188.58,188.46,3.14]
[1735244402950,2.6544,188.55,188.46,3.14]
[1735244403555,9.84540889,188.58,188.46,3.14]
[1735244403756,2.6548,188.52,188.48,2.6553]
[1735244404053,9.84540889,188.55,188.45,4.7645]
[1735244404260,9.84540889,188.55,188.46,3.14]
[1735244405054,9.84540889,188.55,188.4,3.14]
[1735244405055,9.84540889,188.49,188.4,3.14]
[1735244405457,9.84540889,188.46,188.38,1.6225]
[1735244405660,9.84540889,188.46,188.39,3.14]
[1735244405856,9.84540889,188.46,188.38,3.14]
[1735244406258,2.6561,188.43,188.38,5.7966]
[1735244406456,9.84540889,188.46,188.38,3.14]
[1735244406959,2.6559,188.44,188.39,2.6564]
[1735244407360,9.84540889,188.46,188.33,13.10150889]
[1735244407552,9.84540889,188.46,188.34,3.14]
[1735244407958,9.84540889,188.46,188.33,13.10150889]
[1735244408159,9.84540889,188.43,188.33,3.2561]
[1735244408362,9.84540889,188.43,188.34,3.14]
[1735244408559,2.6564,188.4,188.35,2.657]
[1735244408754,9.84540889,188.43,188.35,5.797]
[1735244408962,9.84540889,188.43,188.35,3.14]
[1735244410264,9.84540889,188.46,188.35,3.14]
[1735244410475,2.6558,188.44,188.4,2.6563]
[1735244413376,9.84540889,188.43,188.35,3.14]
[1735244413872,2.6564,188.4,188.35,3.14]
[1735244414069,9.84540889,188.43,188.35,3.14]
[1735244414768,1.4103,188.49,188.35,3.14]
[1735244414971,2.6553,188.48,188.44,2.6558]
[1735244415170,9.84540889,188.5,188.43,3.14]
[1735244415875,2.6558,188.44,188.43,3.14]
[1735244416271,2.6562,188.42,188.39,3.14]
[1735244416571,9.84540889,188.44,188.33,3.2561]
[1735244416777,9.84540889,188.44,188.34,3.14]
[1735244417076,9.84540889,188.41,188.34,3.14]
[1735244417274,11.70632865,188.49,188.26,7.33597398]
[1735244417275,3.14,188.45,188.26,7.33597398]
[1735244417467,9.84540889,188.35,188.28,3.14]
[1735244417671,2.6574,188.33,188.29,2.6578]
[1735244417868,9.84540889,188.38,188.28,3.14]
[1735244418268,12.50210889,188.38,188.34,2.6571]
[1735244418474,9.84540889,188.38,188.33,3.14]
[1735244418872,2.6572,188.35,188.33,3.14]
[1735244419076,9.84540889,188.38,188.33,3.14]
[1735244419673,9.84540889,188.41,188.33,3.14]
[1735244420375,2.6566,188.39,188.34,2.6572]
[1735244420579,9.84540889,188.41,188.34,2.6572]
[1735244420777,9.84540889,188.41,188.33,3.14]
[1735244420978,9.84540889,188.38,188.33,3.14]
[1735244421676,12.50220889,188.38,188.34,2.6571]